bitfinex-derivatives/quotes_ETHF0:USTF0_20251103
["timestamp","ask_amount","ask_price","bid_price","bid_amount"]
[1762128727380,3.66807,3911.2,3910.9,3.16645341]
[1762128727775,3.2078,3911.2,3910.9,3.16645341]
[1762128728790,3.66807,3911.2,3910.9,3.16645341]
[1762128729591,3.2078,3911.2,3910.9,3.16645341]
[1762128729788,3.2078,3911.2,3911.1,0.2124]
[1762128731796,0.46026,3911.3,3911.1,0.2124]
[1762128732787,0.3543,3911.0,3910.9,3.16645341]
[1762128733689,0.2186,3910.4,3910.1,3.16645341]
[1762128733886,0.1357,3910.5,3909.9,3.16645341]
[1762128733887,0.2186,3910.0,3909.9,3.16645341]
[1762128734187,0.67908,3909.4,3908.8,3.2078]
[1762128734585,0.88561079,3909.4,3908.8,3.2078]
[1762128734986,0.67908,3909.4,3908.8,3.2078]
[1762128735195,0.67908,3909.4,3908.8,3.21034939]
[1762128736189,0.46049,3909.3,3908.8,3.21034939]
[1762128737494,3.3435,3909.5,3908.8,3.21034939]
[1762128737889,0.46048,3909.4,3908.8,3.21034939]
[1762128738083,0.4605,3909.3,3908.8,3.21034939]
[1762128738483,0.46048,3909.4,3908.8,3.21034939]
[1762128738994,0.46049,3909.3,3908.8,3.21034939]
[1762128739695,0.46049,3909.3,3908.8,0.00254939]
[1762128740598,0.4605,3909.2,3908.8,0.00254939]
[1762128740898,0.46051,3909.1,3909.0,0.213]
[1762128741198,0.69301,3909.1,3909.0,0.213]
[1762128741698,0.69301,3909.1,3908.8,0.00254939]
[1762128742393,0.46053,3909.0,3908.8,0.00254939]
[1762128742598,0.59143,3909.0,3908.8,0.00254939]
[1762128743599,0.1309,3909.0,3908.8,0.00254939]
[1762128743797,0.1309,3909.0,3908.9,0.213]
[1762128744098,3.3435,3909.5,3908.9,0.213]
[1762128744495,0.46051,3909.2,3908.9,0.213]
[1762128744692,0.46053,3908.9,3908.8,0.00254939]
[1762128744900,0.67689607,3908.9,3908.8,3.1690028]
[1762128747404,0.67689607,3908.9,3908.8,0.00254939]
[1762128750100,0.46063,3908.1,3908.0,0.2325]
[1762128750306,0.1286,3908.5,3907.5,0.1401]
[1762128750307,0.67405,3907.9,3907.5,0.1401]
[1762128751099,0.67405,3907.9,3907.5,0.00233013]
[1762128751300,0.2134,3907.9,3907.8,0.2325]
[1762128752498,0.46065,3907.9,3907.5,0.00233013]
[1762128752705,0.46068,3907.7,3907.5,0.00233013]
[1762128752904,0.2134,3907.6,3907.5,0.23483013]
[1762128753102,0.46068,3907.7,3907.6,0.2325]
[1762128753302,0.46068,3907.7,3907.5,0.00233013]
[1762128753303,0.2134,3907.6,3907.5,0.00233013]
[1762128753606,0.2134,3907.6,3907.5,0.23483013]
[1762128753903,0.2134,3907.6,3907.5,0.00233013]
[1762128756710,0.46068,3907.7,3907.6,0.2325]
[1762128757002,0.2134,3907.6,3907.5,0.00233013]
[1762128757410,0.41571492,3907.6,3907.5,0.00233013]
[1762128758604,0.46078,3906.8,3906.7,0.2325]
[1762128758809,0.2134,3906.7,3906.2,3.2078]
[1762128759012,0.46081,3906.6,3906.2,3.2078]
[1762128759605,0.46081,3906.6,3906.2,3.21060493]
[1762128759807,0.1286,3907.0,3906.2,3.21060493]
[1762128760013,0.46079,3906.7,3906.6,0.2325]
[1762128760200,0.46077,3906.9,3906.6,0.2325]
[1762128760403,0.46077,3906.9,3906.8,0.2325]
[1762128761604,0.67417,3906.9,3906.8,0.2325]
[1762128761811,0.4608,3906.7,3906.6,0.2325]
[1762128762008,0.46077,3906.9,3906.8,0.2325]
[1762128762409,3.2078,3907.3,3906.9,0.2325]
[1762128762605,3.2078,3907.3,3907.2,0.2325]
[1762128762606,3.66853,3907.3,3907.2,0.2325]
[1762128762909,3.88193,3907.3,3907.2,0.2325]
[1762128763105,3.88193,3907.3,3906.8,3.16645341]
[1762128763311,0.2134,3906.9,3906.8,3.16645341]
[1762128764406,0.2134,3906.9,3906.8,3.39895341]
[1762128765513,0.46076,3907.0,3906.8,3.39895341]
[1762128765815,0.46076,3907.0,3906.9,0.2137]
[1762128766417,3.2078,3907.3,3907.2,0.2137]
[1762128766911,3.4242,3907.3,3907.2,0.2137]
[1762128767509,3.2078,3907.3,3906.8,3.16645341]
[1762128768416,3.2078,3907.3,3906.9,3.16645341]
[1762128768614,0.67716,3907.0,3906.9,3.16645341]
[1762128769510,0.67716,3907.0,3906.9,3.38015341]
[1762128769714,0.46074,3907.2,3907.1,0.2137]
[1762128770216,0.67714,3907.2,3907.1,0.2137]
[1762128770814,0.46076,3907.0,3906.9,3.16645341]
[1762128771014,0.67716,3907.0,3906.9,3.38015341]
[1762128771215,0.46073,3907.2,3907.1,0.2137]
[1762128771617,3.2078,3907.3,3907.1,0.2137]
[1762128771818,3.66852,3907.3,3907.1,0.2137]
[1762128772115,3.2078,3907.3,3907.2,0.2137]
[1762128772513,0.46071,3907.4,3907.2,0.2137]
[1762128773016,0.46071,3907.4,3907.3,0.2137]
[1762128774009,0.46069,3907.6,3907.5,0.2137]
[1762128774214,0.46069,3907.6,3907.5,3.38015341]
[1762128774411,0.67709,3907.6,3907.5,3.38015341]
[1762128776410,0.67709,3907.6,3907.5,3.16645341]
[1762128780120,0.67713,3907.2,3907.1,3.16645341]
[1762128785527,1.37290876,3907.3,3907.2,0.2137]
[1762128785828,1.37290876,3907.5,3907.4,0.2137]
[1762128786034,3.66848,3907.7,3907.6,0.2137]
[1762128786732,3.2078,3907.7,3907.6,0.2137]
[1762128788344,3.4242,3907.7,3907.6,0.2137]
[1762128788834,3.2078,3907.7,3907.6,0.2137]
[1762128789331,3.4242,3907.7,3907.6,0.2137]
[1762128789532,0.46068,3907.6,3907.1,0.46074]
[1762128790233,0.46068,3907.6,3907.5,0.2137]
[1762128790732,0.67708,3907.6,3907.5,0.2137]
[1762128791241,0.67708,3907.6,3907.0,0.1328]
[1762128791436,0.67713,3907.2,3906.7,3.2078]
[1762128791625,0.2164,3906.8,3906.7,3.2078]
[1762128792139,0.2164,3906.8,3906.7,3.4215]
[1762128792339,0.2164,3906.8,3906.7,0.2137]
[1762128793038,3.2078,3907.3,3907.2,0.2137]
[1762128796437,8.949,3907.9,3907.6,0.46068]
[1762128796438,1.37290876,3907.9,3907.6,0.46068]
[1762128796633,0.00296607,3908.9,3908.8,0.2285]
[1762128797136,0.00296607,3908.9,3908.8,0.68904]
[1762128799628,0.00296607,3908.9,3908.8,0.2285]
[1762128799831,0.00296607,3908.9,3908.1,3.2078]
[1762128800031,0.1275,3908.0,3907.7,3.2078]
[1762128800437,0.2215,3907.8,3907.7,3.2078]
[1762128801332,0.1275,3908.5,3907.7,3.2078]
[1762128801333,0.1275,3908.5,3908.4,0.2285]
[1762128801538,0.349,3908.5,3907.9,0.46064]
[1762128801741,0.349,3908.5,3908.0,3.16645341]
[1762128802044,0.349,3908.5,3908.0,3.62708341]
[1762128803442,0.1275,3908.5,3908.0,3.16645341]
[1762128803638,0.1275,3908.5,3908.0,3.62708341]
[1762128803942,0.1275,3908.5,3908.1,0.46062]
[1762128804444,0.1275,3908.5,3908.4,0.2285]
[1762128805035,0.3628,3908.5,3908.4,0.2285]
[1762128806945,0.3628,3908.5,3908.1,0.46061]
[1762128807441,0.3628,3908.5,3908.1,3.66841]
[1762128811542,0.3628,3908.5,3908.1,0.46061]
[1762128811844,0.3628,3908.5,3908.1,3.66841]
[1762128812445,0.3628,3908.5,3908.2,3.62706341]
[1762128812644,0.3628,3908.5,3908.2,3.16645341]
[1762128812946,0.2353,3908.3,3908.2,3.16645341]
[1762128813644,0.2353,3907.8,3907.7,3.2078]
[1762128815450,0.46067,3907.7,3907.2,6.37425341]
[1762128815650,0.1337,3907.5,3907.3,3.16645341]
[1762128816649,0.2353,3907.4,3907.3,3.16645341]
[1762128816841,0.5944,3907.5,3907.3,3.38355341]
[1762128817749,0.2353,3907.4,3907.3,3.16645341]
[1762128817953,0.2353,3907.3,3907.2,3.2078]
[1762128818150,0.1337,3907.5,3907.2,3.4249]
[1762128818349,0.46067,3907.8,3907.4,0.2171]
[1762128818547,0.1337,3907.5,3907.4,0.2171]
[1762128820151,0.2353,3907.3,3907.2,3.2078]
[1762128820556,0.46071,3907.4,3907.2,3.4249]
[1762128821053,0.46071,3907.4,3907.2,0.2171]
[1762128821351,0.46072,3907.3,3906.8,0.46077]
[1762128822160,0.46072,3907.3,3907.2,0.2171]
[1762128822350,0.69602,3907.3,3906.8,0.46077]
[1762128823655,0.1337,3907.5,3906.7,3.2078]
[1762128823958,0.1337,3907.5,3907.4,0.2171]
[1762128824156,3.2078,3907.6,3907.5,0.2171]
[1762128825557,0.46066,3907.9,3907.5,3.16645341]
[1762128825759,0.46067,3907.8,3907.7,0.2206]
[1762128825955,0.59435,3908.0,3907.9,0.2206]
[1762128826151,3.2078,3908.1,3908.0,0.2206]
[1762128827456,0.46062,3908.2,3908.0,0.2206]
[1762128828165,0.1323,3908.0,3907.6,6.37425341]
[1762128828367,0.2189,3907.7,3907.6,6.37425341]
[1762128830070,0.2189,3907.7,3907.6,3.2078]
[1762128833268,0.2189,3907.7,3907.2,3.16645341]
[1762128833474,0.1323,3907.5,3907.3,3.16645341]
[1762128833770,0.1323,3907.5,3907.4,3.4284]
[1762128834774,0.1323,3907.5,3907.4,0.2206]
[1762128835074,0.1323,3907.5,3907.4,3.4284]
[1762128835774,0.1323,3907.5,3907.4,0.2206]
[1762128837872,0.46068,3907.7,3907.4,0.2206]
[1762128838078,0.1323,3908.0,3907.6,0.2206]
[1762128838279,0.59294,3908.0,3907.9,0.2206]
[1762128838575,0.1323,3908.0,3907.9,0.2206]
[1762128838774,0.1323,3908.0,3907.9,12.61545]
[1762128839273,0.1323,3908.0,3907.9,13.5187991]
[1762128839469,0.1323,3908.0,3907.9,12.61545]
[1762128839669,0.1323,3908.0,3907.9,12.62145]
[1762128839976,0.1323,3908.0,3907.9,3.66845]
[1762128843881,0.1323,3908.0,3907.9,6.83490341]
[1762128849887,0.1323,3908.0,3907.9,15.78090341]
[1762128850679,0.1323,3908.5,3908.4,0.46059]
[1762128850886,0.1323,3908.5,3908.4,15.78084341]
[1762128857684,0.00296607,3908.9,3908.8,0.46054]
[1762128857887,0.00296607,3908.9,3908.8,12.61234]
[1762128858283,0.00296607,3908.9,3908.8,15.77879341]
[1762128858478,0.1323,3909.5,3909.4,0.46047]
[1762128858695,0.1323,3909.5,3909.4,15.65122341]
[1762128859492,0.13473055,3909.5,3909.4,15.65319225]
[1762128862877,0.13473055,3909.5,3909.4,6.70919225]
[1762128863089,0.35653055,3909.5,3909.4,15.65219225]
[1762128864090,0.13473055,3909.5,3909.4,15.65219225]
[1762128864685,0.35653055,3909.5,3909.4,15.19172225]
[1762128865481,0.13473055,3909.5,3909.4,15.19172225]
[1762128867493,0.13473055,3909.5,3909.4,6.24872225]
[1762128867794,0.13473055,3909.5,3909.4,15.19072225]
[1762128870889,0.1323,3910.0,3909.5,2.90422286]
[1762128871095,0.3568,3910.0,3909.9,3.2078]
[1762128871395,0.3568,3910.0,3909.9,12.1498]
[1762128871993,0.35972172,3910.0,3909.9,12.1498]
[1762128872895,0.13522172,3910.0,3909.9,12.1498]
[1762128873592,0.13522172,3910.0,3909.9,8.942]
[1762128873796,0.13522172,3910.0,3909.9,12.1498]
[1762128875794,0.35972172,3910.0,3909.9,12.1498]
[1762128876595,0.13522172,3910.0,3909.9,12.1498]
[1762128876796,0.35972172,3910.0,3909.9,15.05402286]
[1762128878596,0.13522172,3910.0,3909.9,15.05402286]
[1762128880592,0.35972172,3910.0,3909.9,15.05202286]
[1762128881393,0.35972172,3910.0,3909.9,6.11202286]
[1762128882495,0.35972172,3910.0,3909.9,2.90422286]
[1762128885010,0.13522172,3910.0,3909.9,2.90422286]
[1762128885302,0.13522172,3910.0,3909.9,11.84422286]
[1762128885597,0.1403,3910.5,3909.9,11.84422286]
[1762128885598,0.1403,3910.5,3910.4,0.46036]
[1762128885793,0.1403,3910.5,3910.4,15.37716114]
[1762128886499,0.1435853,3910.5,3910.4,15.37716114]
[1762128886703,0.3780853,3910.5,3910.4,15.37716114]
[1762128886997,0.3780853,3910.5,3910.4,14.91680114]
[1762128887795,0.1435853,3910.5,3910.4,14.91680114]
[1762128889502,0.3780853,3910.5,3910.4,14.91680114]
[1762128891101,0.3780853,3910.5,3910.4,5.97680114]
[1762128892098,8.3780853,3910.5,3910.4,5.97680114]
[1762128892304,8.3780853,3910.5,3910.4,3.2078]
[1762128895806,0.46039,3910.1,3910.0,3.2078]
[1762128896002,0.69489,3910.1,3910.0,3.2078]
[1762128896203,0.3724,3910.0,3909.9,2.76900114]
[1762128899709,0.1379,3910.0,3909.9,2.76900114]
[1762128900611,0.3724,3910.0,3909.9,2.76900114]
[1762128902004,0.83286,3909.5,3909.4,0.00196884]
[1762128902211,0.1379,3909.0,3908.8,3.2078]
[1762128902403,0.2345,3908.9,3908.8,3.2078]
[1762128903209,0.1379,3909.0,3908.8,3.20962127]
[1762128903411,0.1379,3909.0,3908.9,0.46053]
[1762128905810,0.1379,3909.0,3908.8,3.67016127]
[1762128906005,0.2345,3908.9,3908.8,3.20962127]
[1762128906406,1.15109,3909.8,3908.8,3.20962127]
[1762128906407,0.1435853,3910.5,3908.9,1.15133]
[1762128906607,0.1379,3910.0,3909.8,0.46042]
[1762128912721,0.1435853,3910.5,3910.4,0.46036]
[1762128912920,0.1435853,3910.5,3910.4,3.66816]
[1762128915427,0.1435853,3910.5,3910.4,12.60616]
[1762128918527,0.1435853,3910.5,3910.4,9.39836]
[1762128918828,0.1435853,3910.5,3910.4,12.60616]
[1762128919327,0.3780853,3910.5,3910.4,12.60616]
[1762128919729,0.1435853,3910.5,3910.4,12.60616]
[1762128920830,0.1435853,3910.5,3910.4,15.27580664]
[1762128927319,0.1435853,3910.5,3910.4,6.33780664]
[1762128927530,0.3653853,3910.5,3910.4,6.33780664]
[1762128927729,0.1435853,3910.5,3910.4,6.33780664]
[1762128932132,0.1435853,3910.5,3910.4,5.87744664]
[1762128932330,0.3725853,3910.5,3910.4,5.87744664]
[1762128936633,0.3725853,3910.5,3910.4,2.66964664]
[1762128938329,0.1435853,3910.5,3910.4,2.66964664]
[1762128940434,0.1435853,3910.5,3910.4,5.87744664]
[1762128943026,0.1435853,3910.5,3910.4,2.66964664]
[1762128943227,0.1435853,3910.5,3910.4,5.87744664]
[1762128946831,1.37438644,3911.6,3910.4,12.21044664]
[1762128947034,0.1379,3912.0,3911.9,0.46018]
[1762128947241,0.1379,3912.0,3911.9,3.66798]
[1762128948138,0.14010404,3912.0,3911.9,3.67002858]
[1762128950145,0.00220404,3912.0,3911.9,3.67002858]
[1762128952433,0.1369,3912.5,3911.9,3.67002858]
[1762128952434,0.1369,3912.5,3912.4,0.46012]
[1762128952633,0.1369,3912.5,3912.4,12.60092]
[1762128953531,0.139508,3912.5,3912.4,12.60092]
[1762128955238,0.139508,3912.5,3912.4,3.66792]
[1762128955432,0.139508,3912.5,3912.4,12.59992]
[1762128956938,0.368808,3912.5,3912.4,12.1398]
[1762128959039,0.368808,3912.5,3912.4,14.80944664]
[1762128960936,0.368808,3912.5,3912.4,5.87744664]
[1762128961436,0.828918,3912.5,3912.4,5.87744664]
[1762128961733,0.828918,3912.5,3912.4,2.66964664]
[1762128964737,0.828918,3912.5,3911.9,3.20984858]
[1762128964738,0.3662,3912.0,3911.9,3.20984858]
[1762128965135,0.82637,3912.0,3911.9,3.20984858]
[1762128965944,0.82637,3912.0,3911.9,0.00204858]
[1762128966139,8.82637,3912.0,3911.9,0.00204858]
[1762128966735,0.68952,3911.6,3911.5,3.2078]
[1762128967034,0.2293,3911.2,3911.1,3.2078]
[1762128967234,0.1369,3910.0,3909.8,4.93743]
[1762128967541,0.1369,3910.0,3909.9,3.2078]
[1762128967741,0.1369,3910.0,3909.9,3.21041937]
[1762128968238,0.1369,3910.0,3909.0,1.35107148]
[1762128968239,0.1369,3909.5,3909.4,3.2078]
[1762128968434,0.3662,3909.5,3909.4,3.2078]
[1762128969339,0.3690964,3909.5,3909.4,3.21002699]
[1762128970640,0.3690964,3909.5,3909.4,0.00222699]
[1762128971734,0.1397964,3909.5,3909.4,0.46269699]
[1762128974944,0.1397964,3909.5,3909.4,3.67049699]
[1762128975139,0.1369,3911.0,3909.4,3.67049699]
[1762128975140,0.1369,3911.0,3909.7,1.1511]
[1762128975344,0.1369,3911.0,3910.8,3.2078]
[1762128975545,0.2352,3910.8,3910.7,8.945]
[1762128975847,0.1382,3910.5,3910.4,0.46036]
[1762128976142,0.14041204,3910.5,3910.4,9.40636]
[1762128978337,0.1369,3911.0,3910.8,0.4603]
[1762128978545,0.1369,3911.0,3910.9,8.948]
[1762128979349,0.13947262,3911.0,3910.9,8.948]
[1762128981451,0.1382,3911.5,3910.9,10.09872]
[1762128981651,0.1382,3911.5,3911.4,3.2078]
[1762128981850,0.1382,3911.5,3911.4,12.1618]
[1762128982155,0.1382,3911.5,3911.4,12.62204]
[1762128982654,0.14148119,3911.5,3911.4,12.62204]
[1762128983545,3.346,3912.5,3911.9,0.46018]
[1762128983748,3.346,3912.5,3911.9,12.61898]
[1762128983946,0.1382,3912.5,3911.9,12.61898]
[1762128984752,0.14131979,3912.0,3911.9,12.61898]
[1762128986054,0.14131979,3912.0,3911.9,15.28862664]
[1762128992763,0.14131979,3912.0,3911.9,6.33762664]
[1762128992964,0.14131979,3912.0,3911.9,15.27562664]
[1762128993462,0.14131979,3912.0,3911.9,6.33762664]
[1762128993776,0.00311979,3912.0,3911.9,15.27462664]
[1762128994061,0.1382,3912.5,3912.4,0.46012]
[1762128994260,0.1382,3912.5,3912.4,12.60392]
[1762128994562,3.2078,3913.3,3912.4,15.01353825]
[1762128994759,0.1368,3914.0,3913.4,0.46]
[1762128995058,0.14043198,3913.5,3913.4,9.419]
[1762128997464,0.14043198,3913.5,3913.4,9.417]
[1762128998467,0.00223198,3913.5,3913.4,9.417]
[1762128999562,0.1368,3914.0,3913.9,0.45995]
[1762128999763,0.1368,3914.0,3913.9,12.62175]
[1762129000560,0.13890568,3914.0,3913.9,12.62175]
[1762129001767,3.2078,3915.3,3913.9,12.62175]
[1762129001768,3.2078,3915.7,3914.6,0.45986]
[1762129001965,0.1368,3915.0,3914.9,0.45983]
[1762129002160,0.1368,3915.0,3914.9,3.66763]
[1762129002361,0.1368,3915.0,3914.9,12.65563]
[1762129002761,0.13899361,3915.0,3914.9,12.65563]
[1762129004567,0.13899361,3915.0,3914.9,12.65063]
[1762129005164,0.37319361,3915.0,3914.9,3.66763]
[1762129005369,0.37319361,3915.0,3914.9,12.64863]
[1762129005871,0.35849361,3915.0,3914.9,12.64863]
[1762129006163,0.35849361,3915.0,3914.9,12.1888]
[1762129006356,0.35849361,3915.0,3914.9,3.2078]
[1762129006557,8.81831361,3915.0,3914.9,3.2078]
[1762129006765,8.35849361,3915.0,3914.9,3.2078]
[1762129007465,8.35849361,3915.0,3914.4,4.111]
[1762129007466,0.3544,3914.5,3914.4,3.2078]
[1762129007768,0.2195,3914.1,3914.0,3.2078]
[1762129008357,0.1349,3914.0,3913.6,3.2078]
[1762129008563,0.1349,3914.0,3913.7,0.45997]
[1762129008969,0.2195,3913.7,3913.6,3.2078]
[1762129010372,0.1349,3914.0,3913.6,3.78237]
[1762129010568,0.2195,3913.7,3913.6,3.78237]
[1762129010770,0.1349,3914.5,3913.9,0.1146]
[1762129011073,0.1349,3914.5,3914.0,3.2078]
[1762129011568,0.59478,3914.5,3914.0,3.66773]
[1762129011774,0.45989,3914.4,3914.0,3.66773]
[1762129012074,0.1349,3914.5,3914.0,3.2078]
[1762129012075,0.2195,3914.1,3914.0,3.2078]
[1762129012563,0.1349,3914.5,3914.3,0.45989]
[1762129012770,0.1349,3914.5,3914.4,3.3224]
[1762129013075,0.3544,3914.5,3914.3,0.45989]
[1762129013473,0.2195,3914.2,3914.1,8.991]
[1762129013774,0.2195,3914.2,3914.1,9.45092]
[1762129013963,0.1349,3914.5,3914.4,0.45989]
[1762129014168,0.3544,3914.5,3914.4,0.45989]
[1762129014974,0.3544,3914.5,3914.4,3.66769]
[1762129015474,0.1349,3914.5,3914.4,3.66769]
[1762129015675,0.00219361,3915.0,3914.9,0.1146]
[1762129015871,0.00219361,3915.0,3914.9,9.1106]
[1762129017274,0.13709361,3915.0,3914.9,9.1106]
[1762129017475,0.13709361,3915.0,3914.8,12.68863]
[1762129017978,0.00219361,3915.0,3914.9,0.1146]
[1762129018172,0.00219361,3915.0,3914.9,2.78424664]
[1762129018478,0.13709361,3915.0,3914.9,2.78424664]
[1762129022878,0.13709361,3915.0,3914.9,11.79724664]
[1762129023678,0.13709361,3915.0,3914.9,15.00504664]
[1762129024377,0.35659361,3915.0,3914.9,5.87744664]
[1762129025081,11.56439361,3915.0,3914.9,2.66964664]
[1762129025581,0.2195,3914.4,3914.3,9.46989]
[1762129025770,0.2195,3914.2,3914.1,3.2078]
[1762129025969,0.1349,3914.0,3913.6,3.2078]
[1762129026178,0.59484,3914.0,3913.6,3.2078]
[1762129026382,0.2195,3913.7,3913.6,3.2078]
[1762129026774,1.37438644,3914.8,3914.4,0.1146]
[1762129026976,1.37438644,3915.1,3914.6,0.45986]
[1762129027176,0.1349,3914.5,3914.4,10.4268]
[1762129027478,0.1349,3914.5,3914.4,12.3504]
[1762129029779,0.2195,3914.4,3914.3,9.4839]
[1762129030776,0.1349,3914.5,3914.3,9.4839]
[1762129032286,0.1349,3914.5,3914.4,5.87744664]
[1762129032780,0.59692361,3915.0,3914.4,5.87744664]
[1762129032781,0.13709361,3915.0,3914.4,5.87744664]
[1762129032986,0.13709361,3915.0,3914.9,0.1146]
[1762129034483,0.35659361,3915.0,3914.8,0.45983]
[1762129035079,0.13709361,3915.0,3914.9,0.1147]
[1762129035282,0.13709361,3915.0,3914.8,3.66763]
[1762129037385,0.2191,3914.9,3914.8,3.2078]
[1762129037585,0.13709361,3915.0,3914.8,3.78234]
[1762129037783,0.13709361,3915.0,3914.9,0.1147]
[1762129037981,0.13709361,3915.0,3914.9,11.79634664]
[1762129038176,0.45977,3915.4,3914.9,11.79634664]
[1762129038177,3.2078,3915.7,3915.6,0.57444]
[1762129038489,0.1351,3916.0,3915.7,0.45973]
[1762129038986,0.5948,3916.0,3915.6,12.2188]
[1762129039178,0.5948,3916.0,3915.6,12.2213561]
[1762129039478,0.45972,3915.9,3915.6,3.2103561]
[1762129039685,0.2191,3915.7,3915.6,3.2103561]
[1762129040279,0.67883,3915.7,3915.6,0.0025561]
[1762129041584,3.88663,3915.7,3915.6,0.0025561]
[1762129041777,0.2191,3914.9,3914.8,3.2078]
[1762129042782,0.2191,3914.9,3914.8,3.21024752]
[1762129043885,0.1351,3915.5,3914.9,0.1173]
[1762129044088,0.59486,3915.5,3915.2,3.2078]
[1762129044483,0.1351,3915.5,3915.2,3.66759]
[1762129045690,0.1351,3915.5,3915.4,0.45977]
[1762129045989,0.1351,3915.5,3915.2,3.66758]
[1762129046184,0.59486,3915.5,3915.2,3.66758]
[1762129046381,0.1351,3915.5,3915.4,0.1173]
[1762129046585,0.45972,3915.9,3915.5,0.45976]
[1762129046786,0.45973,3915.8,3915.5,0.45976]
[1762129046990,0.1316,3915.5,3915.4,0.1179]
[1762129047593,0.45974,3915.7,3915.6,0.1179]
[1762129048083,0.45971,3915.9,3915.6,0.1179]
[1762129048485,0.1316,3915.5,3915.2,3.66758]
[1762129048687,0.67243,3914.9,3914.8,0.00244752]
[1762129049597,8.67243,3914.9,3914.8,0.00244752]
[1762129049892,0.67243,3914.9,3914.8,0.00244752]
[1762129050091,0.2126,3914.9,3914.8,0.00244752]
[1762129053802,8.2126,3914.9,3914.8,0.00244752]
[1762129054292,0.1316,3914.0,3913.8,12.68075]
[1762129055094,0.1316,3914.0,3913.8,12.22352039]
[1762129055889,0.1316,3914.0,3913.8,12.68347039]
[1762129056096,0.1316,3914.0,3913.9,0.1203]
[1762129056886,0.2126,3913.9,3913.8,0.00272039]
[1762129059699,0.67263,3913.2,3912.8,3.2078]
[1762129060695,0.67577708,3913.2,3913.1,0.47451462]
[1762129060998,0.00314708,3913.2,3913.1,0.59751462]
[1762129062097,0.21574708,3913.2,3913.1,0.47451462]
[1762129068199,0.00314708,3913.2,3913.1,0.59751462]
[1762129068597,0.2128,3911.2,3911.1,0.90353413]
[1762129068790,3.4206,3911.2,3910.7,0.90353413]
[1762129068995,3.4206,3911.2,3910.6,0.46033]
[1762129069207,3.2078,3911.2,3911.1,0.1227]
[1762129069594,3.2078,3911.2,3911.1,0.12497984]
[1762129071801,0.1305,3911.5,3911.4,0.46024]
[1762129072706,0.1305,3912.0,3911.9,0.46018]
[1762129073606,0.1305,3912.0,3911.9,9.53418]
[1762129075502,0.1305,3911.5,3911.4,3.2078]
[1762129075897,0.1305,3911.5,3911.4,12.2788]
[1762129076506,0.80353,3911.5,3911.4,3.2078]
[1762129076706,0.59073,3911.5,3911.1,0.00227984]
[1762129076903,0.59073,3911.5,3911.1,0.46254984]
[1762129077805,0.46025,3911.4,3911.1,0.46254984]
[1762129078004,0.46025,3911.4,3911.1,0.00227984]
[1762129079603,0.2128,3911.2,3911.1,0.00227984]
[1762129080510,0.1305,3911.5,3911.1,0.00227984]
[1762129080710,0.1305,3911.5,3911.3,0.46024]
[1762129082803,0.1305,3911.5,3911.4,2.66964664]
[1762129083109,0.1305,3911.5,3911.4,5.87744664]
[1762129084905,0.1305,3912.0,3911.9,0.46018]
[1762129085101,0.1305,3912.0,3911.9,3.12982664]
[1762129085298,0.1305,3912.0,3911.9,12.18882664]
[1762129090006,0.1305,3912.0,3911.9,15.39662664]
[1762129090703,3.2078,3912.9,3912.4,0.46012]
[1762129090906,0.1305,3913.0,3912.9,0.46006]
[1762129091102,0.1305,3913.0,3912.9,12.72486]
[1762129094517,0.3433,3913.0,3912.9,12.71886]
[1762129094823,0.1305,3913.0,3912.9,12.71886]
[1762129096816,0.1305,3913.0,3912.9,15.38850664]
[1762129100829,3.2078,3913.9,3913.1,0.46004]
[1762129101122,3.66775,3913.9,3913.1,0.46004]
[1762129101521,3.2078,3913.9,3913.1,0.46004]
[1762129101721,3.66775,3913.9,3913.1,9.49804]
[1762129102120,0.45996,3913.8,3913.1,9.49804]
[1762129102330,0.45997,3913.7,3913.1,9.49804]
[1762129102630,0.45997,3913.7,3913.1,12.16768664]
[1762129102832,0.23864708,3913.2,3913.1,12.16768664]
[1762129103130,0.23864708,3913.2,3913.1,12.16568664]
[1762129103626,0.00314708,3913.2,3913.1,3.12968664]
[1762129103924,0.00314708,3913.2,3913.1,12.16568664]
[1762129104121,0.00314708,3913.2,3913.1,3.12968664]
[1762129104616,0.00314708,3913.2,3913.1,12.16268664]
[1762129106232,7.08e-06,3913.2,3913.1,12.16268664]
[1762129106420,0.02267471,3913.5,3913.4,0.46]
[1762129106621,0.02267471,3913.5,3913.4,9.491]
[1762129106822,3.2078,3913.9,3913.8,0.45996]
[1762129107029,3.2078,3913.9,3913.8,12.16060664]
[1762129107327,3.21016997,3913.9,3913.8,12.16060664]
[1762129108418,0.00236997,3913.9,3913.8,12.16060664]
[1762129110730,0.1305,3914.0,3913.8,12.16060664]
[1762129111524,0.1305,3914.0,3913.9,2.66964664]
[1762129111725,0.13275814,3914.0,3913.9,2.67273419]
[1762129116631,0.13275814,3914.0,3913.9,11.68673419]
[1762129121430,0.13275814,3914.0,3913.9,2.67273419]
[1762129121629,0.13275814,3914.0,3913.9,11.67373419]
[1762129124840,0.13275814,3914.0,3913.9,2.67273419]
[1762129125030,0.13275814,3914.0,3913.9,11.66773419]
[1762129125434,0.13275814,3914.0,3913.9,11.66573419]
[1762129125637,0.36025814,3914.0,3913.9,2.67273419]
[1762129125836,0.36025814,3914.0,3913.9,11.66573419]
[1762129126133,0.36025814,3914.0,3913.9,11.66473419]
[1762129126338,0.36025814,3914.0,3913.9,2.67273419]
[1762129126543,8.36025814,3914.0,3913.9,2.67273419]
[1762129126838,8.36025814,3914.0,3913.9,11.66673419]
[1762129127427,8.36025814,3914.0,3913.9,2.67273419]
[1762129127629,11.56805814,3914.0,3913.9,2.67273419]
[1762129128033,0.3485,3913.5,3913.3,3.2078]
[1762129128336,0.3485,3913.0,3912.9,6.33750664]
[1762129128640,0.3485,3913.0,3912.9,15.32950664]
[1762129129033,0.3485,3913.0,3912.9,15.33184956]
[1762129129241,0.3485,3913.0,3912.9,12.66220292]
[1762129129739,0.3485,3913.0,3912.9,12.66120292]
[1762129130438,0.1284,3913.5,3913.4,0.46]